[Event "Titled Tuesday Blitz January 10 Early 2023"]
[White "Bon, Michael"]
[Black "Lakshmi C"]
[WhiteFideId "620696"]
[BlackFideId "25035347"]
[WhiteElo "2394"]
[BlackElo "1928"]
[Result "1-0"]
[Round "11"]
[TimeControl "180+2"]
[Date "2023.01.10"]
[WhiteClock "0:01:58"]
[BlackClock "0:00:02"]

1. e4 {[%clk 0:03:00]}  c5 {[%clk 0:02:53]} 2. Nf3 {[%clk 0:03:00]}  Nc6 {[%clk 0:02:53]} 3. d4 {[%clk 0:03:00]}  cxd4 {[%clk 0:02:53]} 4. Nxd4 {[%clk 0:03:01]}  Nf6 {[%clk 0:02:54]} 5. Nc3 {[%clk 0:03:01]}  e5 {[%clk 0:02:54]} 6. Ndb5 {[%clk 0:03:02]}  d6 {[%clk 0:02:55]} 7. Bg5 {[%clk 0:03:02]}  a6 {[%clk 0:02:54]} 8. Na3 {[%clk 0:03:02]}  b5 {[%clk 0:02:54]} 9. Bxf6 {[%clk 0:03:02]}  gxf6 {[%clk 0:02:53]} 10. Nd5 {[%clk 0:03:03]}  Bg7 {[%clk 0:02:54]} 11. c3 {[%clk 0:03:03]}  Ne7 {[%clk 0:02:52]} 12. Nxe7 {[%clk 0:03:02]}  Qxe7 {[%clk 0:02:51]} 13. Nc2 {[%clk 0:03:03]}  Bb7 {[%clk 0:02:49]} 14. Qg4 {[%clk 0:02:57]}  Bh6 {[%clk 0:02:41]} 15. a4 {[%clk 0:02:51]}  bxa4 {[%clk 0:01:53]} 16. Rxa4 {[%clk 0:02:52]}  Qe6 {[%clk 0:01:51]} 17. Qh5 {[%clk 0:02:43]}  Bc1 {[%clk 0:01:33]} 18. Rb4 {[%clk 0:02:30]}  Bc6 {[%clk 0:01:15]} 19. Bc4 {[%clk 0:02:29]}  Qd7 {[%clk 0:01:14]} 20. O-O {[%clk 0:02:24]}  a5 {[%clk 0:01:13]} 21. Rb6 {[%clk 0:02:21]}  Bg5 {[%clk 0:00:23]} 22. h4 {[%clk 0:02:08]}  Bf4 {[%clk 0:00:15]} 23. g3 {[%clk 0:02:05]}  Bxe4 {[%clk 0:00:08]} 24. Bb5 {[%clk 0:02:04]}  Ke7 {[%clk 0:00:03]} 25. Bxd7 {[%clk 0:02:03]}  Bxc2 {[%clk 0:00:02]} 26. Bf5 {[%clk 0:01:58]} 1-0


[Site "https://www.chess.com"]

[Event "Titled Tuesday Blitz January 10 Early 2023"]
[White "Osinovsky, Stepan"]
[Black "Riverol, Jose"]
[WhiteFideId "4157354"]
[BlackFideId "3000427"]
[WhiteElo "2241"]
[BlackElo "2304"]
[Result "0-1"]
[Round "11"]
[TimeControl "180+2"]
[Date "2023.01.10"]
[WhiteClock "0:00:29"]
[BlackClock "0:00:08"]

1. Nf3 {[%clk 0:02:56]}  Nf6 {[%clk 0:02:59]} 2. g3 {[%clk 0:02:57]}  g6 {[%clk 0:03:00]} 3. Bg2 {[%clk 0:02:58]}  Bg7 {[%clk 0:03:00]} 4. O-O {[%clk 0:02:59]}  O-O {[%clk 0:03:01]} 5. d3 {[%clk 0:02:59]}  d5 {[%clk 0:03:01]} 6. Nbd2 {[%clk 0:03:00]}  c5 {[%clk 0:03:02]} 7. e4 {[%clk 0:03:01]}  Nc6 {[%clk 0:03:02]} 8. Re1 {[%clk 0:03:00]}  dxe4 {[%clk 0:03:01]} 9. dxe4 {[%clk 0:03:01]}  Bg4 {[%clk 0:03:00]} 10. h3 {[%clk 0:03:01]}  Be6 {[%clk 0:02:59]} 11. c3 {[%clk 0:02:59]}  Qc7 {[%clk 0:02:59]} 12. Qe2 {[%clk 0:02:58]}  Rfe8 {[%clk 0:02:58]} 13. Nc4 {[%clk 0:02:57]}  Rad8 {[%clk 0:02:49]} 14. Bf4 {[%clk 0:02:53]}  Qc8 {[%clk 0:02:49]} 15. a4 {[%clk 0:02:42]}  Bxh3 {[%clk 0:02:35]} 16. Ng5 {[%clk 0:02:27]}  Bxg2 {[%clk 0:02:34]} 17. Kxg2 {[%clk 0:02:28]}  Nh5 {[%clk 0:02:23]} 18. Be3 {[%clk 0:02:25]}  b6 {[%clk 0:02:21]} 19. Rh1 {[%clk 0:02:23]}  Nf6 {[%clk 0:01:54]} 20. e5 {[%clk 0:02:19]}  Ng4 {[%clk 0:01:38]} 21. e6 {[%clk 0:02:08]}  f5 {[%clk 0:01:33]} 22. Rxh7 {[%clk 0:02:06]}  Nce5 {[%clk 0:01:07]} 23. Rah1 {[%clk 0:01:58]}  Qc6+ {[%clk 0:01:04]} 24. f3 {[%clk 0:01:57]}  Nxc4 {[%clk 0:00:51]} 25. Bf4 {[%clk 0:01:47]}  Nf6 {[%clk 0:00:23]} 26. Qxc4 {[%clk 0:01:41]}  Nxh7 {[%clk 0:00:17]} 27. Rxh7 {[%clk 0:01:41]}  Qd5 {[%clk 0:00:17]} 28. Qe2 {[%clk 0:01:30]}  Qd1 {[%clk 0:00:15]} 29. Qf2 {[%clk 0:01:00]}  Rd5 {[%clk 0:00:15]} 30. g4 {[%clk 0:00:53]}  Red8 {[%clk 0:00:15]} 31. Kg3 {[%clk 0:00:50]}  fxg4 {[%clk 0:00:14]} 32. Qh2 {[%clk 0:00:44]}  Rxg5 {[%clk 0:00:12]} 33. Bxg5 {[%clk 0:00:33]}  Qxf3+ {[%clk 0:00:11]} 34. Kh4 {[%clk 0:00:33]}  Kxh7 {[%clk 0:00:10]} 35. Bxe7 {[%clk 0:00:33]}  Re8 {[%clk 0:00:09]} 36. Kg5+ {[%clk 0:00:30]}  Qh3 {[%clk 0:00:08]} 37. Qc7 {[%clk 0:00:29]}  Qh5+ {[%clk 0:00:07]} 38. Kf4 {[%clk 0:00:29]}  Qf5+ {[%clk 0:00:07]} 39. Ke3 {[%clk 0:00:29]}  Qxe6+ {[%clk 0:00:07]} 40. Kd2 {[%clk 0:00:29]}  Qxe7 {[%clk 0:00:08]} 0-1


[Site "https://www.chess.com"]

[Event "Titled Tuesday Blitz January 10 Early 2023"]
[White "Simonovic, Miroslav"]
[Black "Horcajuelo Rocamora, Martin"]
[WhiteFideId "919152"]
[BlackFideId "24573027"]
[WhiteElo "2082"]
[BlackElo "2107"]
[Result "0-1"]
[Round "11"]
[TimeControl "180+2"]
[Date "2023.01.10"]
[WhiteClock "0:00:16"]
[BlackClock "0:00:16"]

1. d4 {[%clk 0:03:00]}  Nf6 {[%clk 0:02:54]} 2. Bg5 {[%clk 0:03:01]}  c5 {[%clk 0:02:49]} 3. Bxf6 {[%clk 0:03:01]}  gxf6 {[%clk 0:02:31]} 4. c3 {[%clk 0:03:01]}  Qb6 {[%clk 0:02:14]} 5. Qc2 {[%clk 0:03:00]}  cxd4 {[%clk 0:02:07]} 6. cxd4 {[%clk 0:03:01]}  Nc6 {[%clk 0:02:05]} 7. e3 {[%clk 0:03:01]}  d5 {[%clk 0:02:05]} 8. Nd2 {[%clk 0:03:01]}  Bg4 {[%clk 0:02:03]} 9. Ngf3 {[%clk 0:02:56]}  e6 {[%clk 0:01:58]} 10. Be2 {[%clk 0:02:53]}  Bf5 {[%clk 0:01:46]} 11. Qb3 {[%clk 0:02:53]}  Bd6 {[%clk 0:01:41]} 12. O-O {[%clk 0:02:49]}  Na5 {[%clk 0:01:35]} 13. Qa4+ {[%clk 0:02:36]}  Nc6 {[%clk 0:01:33]} 14. Rac1 {[%clk 0:02:29]}  O-O {[%clk 0:01:29]} 15. Nb3 {[%clk 0:02:19]}  e5 {[%clk 0:01:17]} 16. Rfd1 {[%clk 0:02:15]}  e4 {[%clk 0:01:16]} 17. Nfd2 {[%clk 0:02:05]}  a6 {[%clk 0:01:12]} 18. Rc2 {[%clk 0:01:14]}  Bd7 {[%clk 0:01:09]} 19. Nc5 {[%clk 0:01:12]}  Bxc5 {[%clk 0:01:02]} 20. dxc5 {[%clk 0:01:11]}  Qc7 {[%clk 0:01:01]} 21. Nb3 {[%clk 0:00:52]}  Rad8 {[%clk 0:00:46]} 22. Nd4 {[%clk 0:00:51]}  Ne5 {[%clk 0:00:41]} 23. Qb3 {[%clk 0:00:48]}  Bc6 {[%clk 0:00:37]} 24. f4 {[%clk 0:00:32]}  exf3 {[%clk 0:00:29]} 25. gxf3 {[%clk 0:00:32]}  Rfe8 {[%clk 0:00:22]} 26. f4 {[%clk 0:00:30]}  Ng6 {[%clk 0:00:22]} 27. Qd3 {[%clk 0:00:26]}  Qe7 {[%clk 0:00:20]} 28. Nf5 {[%clk 0:00:25]}  Qe4 {[%clk 0:00:19]} 29. Qxe4 {[%clk 0:00:25]}  Rxe4 {[%clk 0:00:19]} 30. Bf3 {[%clk 0:00:23]}  Re6 {[%clk 0:00:18]} 31. Rcd2 {[%clk 0:00:23]}  Ne7 {[%clk 0:00:17]} 32. Nxe7+ {[%clk 0:00:22]}  Rxe7 {[%clk 0:00:17]} 33. Kf2 {[%clk 0:00:22]}  Red7 {[%clk 0:00:17]} 34. Rd4 {[%clk 0:00:20]}  Kf8 {[%clk 0:00:17]} 35. Bg4 {[%clk 0:00:20]}  Re7 {[%clk 0:00:17]} 36. Bf5 {[%clk 0:00:20]}  h6 {[%clk 0:00:17]} 37. e4 {[%clk 0:00:20]}  Rde8 {[%clk 0:00:17]} 38. exd5 {[%clk 0:00:18]}  Re2+ {[%clk 0:00:17]} 39. Kf3 {[%clk 0:00:16]}  R8e3+ {[%clk 0:00:17]} 40. Kg4 {[%clk 0:00:16]}  Rg2+ {[%clk 0:00:17]} 41. Kh4 {[%clk 0:00:16]}  Rxh2+ {[%clk 0:00:17]} 42. Kg4 {[%clk 0:00:16]}  h5# {[%clk 0:00:16]} 0-1


[Site "https://www.chess.com"]

[Event "Titled Tuesday Blitz January 10 Early 2023"]
[White "Fernandez, Michael"]
[Black "Rosh Jain"]
[WhiteFideId "5803560"]
[BlackFideId "25789465"]
[WhiteElo "2181"]
[BlackElo "2248"]
[Result "1-0"]
[Round "11"]
[TimeControl "180+2"]
[Date "2023.01.10"]
[WhiteClock "0:01:05"]
[BlackClock "0:00:06"]

1. d4 {[%clk 0:03:00]}  Nf6 {[%clk 0:02:57]} 2. Nf3 {[%clk 0:02:58]}  d5 {[%clk 0:02:55]} 3. c4 {[%clk 0:02:57]}  e6 {[%clk 0:02:52]} 4. Nc3 {[%clk 0:02:55]}  Be7 {[%clk 0:02:50]} 5. Bg5 {[%clk 0:02:53]}  h6 {[%clk 0:02:48]} 6. Bxf6 {[%clk 0:02:52]}  Bxf6 {[%clk 0:02:48]} 7. e3 {[%clk 0:02:53]}  O-O {[%clk 0:02:48]} 8. Be2 {[%clk 0:02:52]}  dxc4 {[%clk 0:02:46]} 9. Bxc4 {[%clk 0:02:52]}  a6 {[%clk 0:02:45]} 10. O-O {[%clk 0:02:46]}  b5 {[%clk 0:02:45]} 11. Bd3 {[%clk 0:02:44]}  Bb7 {[%clk 0:02:44]} 12. Ne4 {[%clk 0:02:43]}  Be7 {[%clk 0:02:43]} 13. Rc1 {[%clk 0:02:42]}  Nd7 {[%clk 0:02:43]} 14. Bb1 {[%clk 0:02:41]}  Rc8 {[%clk 0:02:41]} 15. Qd3 {[%clk 0:02:40]}  g6 {[%clk 0:02:29]} 16. Rfd1 {[%clk 0:02:40]}  Nf6 {[%clk 0:02:12]} 17. Nc5 {[%clk 0:02:27]}  Bxc5 {[%clk 0:02:09]} 18. Rxc5 {[%clk 0:02:27]}  Bxf3 {[%clk 0:02:07]} 19. gxf3 {[%clk 0:02:26]}  Nd7 {[%clk 0:02:07]} 20. Rc6 {[%clk 0:02:21]}  Nb8 {[%clk 0:02:06]} 21. Rc5 {[%clk 0:02:19]}  Nd7 {[%clk 0:02:04]} 22. Rc6 {[%clk 0:02:20]}  Qg5+ {[%clk 0:01:42]} 23. Kh1 {[%clk 0:02:18]}  Nb6 {[%clk 0:01:14]} 24. Rg1 {[%clk 0:02:06]}  Qf6 {[%clk 0:01:13]} 25. f4 {[%clk 0:02:01]}  Nd5 {[%clk 0:01:10]} 26. a3 {[%clk 0:01:43]}  Kh8 {[%clk 0:01:05]} 27. Rxa6 {[%clk 0:01:26]}  c5 {[%clk 0:01:04]} 28. dxc5 {[%clk 0:01:22]}  Rxc5 {[%clk 0:01:05]} 29. b4 {[%clk 0:01:18]}  Rc3 {[%clk 0:01:01]} 30. Qxd5 {[%clk 0:01:18]}  Rxa3 {[%clk 0:00:54]} 31. Qxb5 {[%clk 0:01:18]}  Rxa6 {[%clk 0:00:42]} 32. Qxa6 {[%clk 0:01:18]}  Qh4 {[%clk 0:00:41]} 33. Qd6 {[%clk 0:01:13]}  Rg8 {[%clk 0:00:38]} 34. Qe5+ {[%clk 0:01:11]}  Kh7 {[%clk 0:00:37]} 35. f5 {[%clk 0:01:08]}  Qxf2 {[%clk 0:00:30]} 36. fxg6+ {[%clk 0:01:05]}  fxg6 {[%clk 0:00:11]} 37. Bxg6+ {[%clk 0:01:05]}  Rxg6 {[%clk 0:00:08]} 38. Qc7+ {[%clk 0:01:05]}  Kh8 {[%clk 0:00:07]} 39. Qd8+ {[%clk 0:01:04]}  Kh7 {[%clk 0:00:08]} 40. Qd7+ {[%clk 0:01:04]}  Kh8 {[%clk 0:00:07]} 41. Qe8+ {[%clk 0:01:04]}  Kh7 {[%clk 0:00:06]} 42. Qxg6+ {[%clk 0:01:04]}  Kh8 {[%clk 0:00:06]} 43. Qg8# {[%clk 0:01:05]} 1-0


[Site "https://www.chess.com"]

[Event "Titled Tuesday Blitz January 10 Early 2023"]
[White "Quinones Garcia, Santiago"]
[Black "Kho, Darrell"]
[WhiteFideId "4408497"]
[BlackFideId "1019317"]
[WhiteElo "2248"]
[BlackElo "2075"]
[Result "1-0"]
[Round "11"]
[TimeControl "180+2"]
[Date "2023.01.10"]
[WhiteClock "0:01:31"]
[BlackClock "0:00:14"]

1. d3 {[%clk 0:03:00]}  d5 {[%clk 0:02:57]} 2. Nf3 {[%clk 0:03:00]}  Nf6 {[%clk 0:02:55]} 3. g3 {[%clk 0:03:01]}  c5 {[%clk 0:02:52]} 4. Bg2 {[%clk 0:03:01]}  Nc6 {[%clk 0:02:52]} 5. O-O {[%clk 0:03:01]}  e5 {[%clk 0:02:52]} 6. c3 {[%clk 0:03:01]}  Be7 {[%clk 0:02:51]} 7. Nbd2 {[%clk 0:03:00]}  O-O {[%clk 0:02:51]} 8. e4 {[%clk 0:03:00]}  Be6 {[%clk 0:02:37]} 9. Re1 {[%clk 0:03:00]}  d4 {[%clk 0:02:35]} 10. c4 {[%clk 0:02:56]}  Nd7 {[%clk 0:02:29]} 11. Nf1 {[%clk 0:02:54]}  f6 {[%clk 0:02:27]} 12. h4 {[%clk 0:02:53]}  a6 {[%clk 0:02:24]} 13. N1h2 {[%clk 0:02:53]}  b5 {[%clk 0:02:21]} 14. b3 {[%clk 0:02:53]}  Rb8 {[%clk 0:02:16]} 15. g4 {[%clk 0:02:49]}  bxc4 {[%clk 0:02:11]} 16. bxc4 {[%clk 0:02:48]}  Nb6 {[%clk 0:01:46]} 17. g5 {[%clk 0:02:44]}  Qd7 {[%clk 0:01:38]} 18. Kh1 {[%clk 0:02:42]}  Kh8 {[%clk 0:01:26]} 19. Rg1 {[%clk 0:02:42]}  Nxc4 {[%clk 0:01:25]} 20. dxc4 {[%clk 0:02:39]}  Bxc4 {[%clk 0:01:25]} 21. Ba3 {[%clk 0:02:36]}  Be6 {[%clk 0:01:22]} 22. Qa4 {[%clk 0:02:16]}  c4 {[%clk 0:01:06]} 23. Bxe7 {[%clk 0:02:16]}  Nxe7 {[%clk 0:01:06]} 24. gxf6 {[%clk 0:02:15]}  Qxa4 {[%clk 0:01:02]} 25. fxe7 {[%clk 0:02:04]}  Rfe8 {[%clk 0:00:55]} 26. Nxe5 {[%clk 0:02:04]}  Rxe7 {[%clk 0:00:53]} 27. Nhf3 {[%clk 0:02:01]}  c3 {[%clk 0:00:47]} 28. Rad1 {[%clk 0:01:57]}  Qxa2 {[%clk 0:00:29]} 29. Nxd4 {[%clk 0:01:51]}  Qxf2 {[%clk 0:00:21]} 30. Rgf1 {[%clk 0:01:42]}  Qxh4+ {[%clk 0:00:20]} 31. Kg1 {[%clk 0:01:42]}  Bg4 {[%clk 0:00:16]} 32. Rf4 {[%clk 0:01:36]}  Rxe5 {[%clk 0:00:15]} 33. Nc6 {[%clk 0:01:34]}  Qg3 {[%clk 0:00:14]} 34. Nxb8 {[%clk 0:01:31]}  Qxf4 {[%clk 0:00:14]} 35. Rd8+ {[%clk 0:01:31]} 1-0


[Site "https://www.chess.com"]

[Event "Titled Tuesday Blitz January 10 Early 2023"]
[White "Johnson, Ben"]
[Black "Donskov, Anatoly"]
[WhiteFideId "2010917"]
[BlackFideId "24143413"]
[WhiteElo "1961"]
[BlackElo "2279"]
[Result "1-0"]
[Round "11"]
[TimeControl "180+2"]
[Date "2023.01.10"]
[WhiteClock "0:00:06"]
[BlackClock "0:00:07"]

1. Nf3 {[%clk 0:03:00]}  d5 {[%clk 0:02:58]} 2. e3 {[%clk 0:03:00]}  Nf6 {[%clk 0:02:58]} 3. c4 {[%clk 0:03:01]}  c6 {[%clk 0:02:57]} 4. Nc3 {[%clk 0:03:00]}  Bg4 {[%clk 0:02:56]} 5. cxd5 {[%clk 0:03:00]}  cxd5 {[%clk 0:02:57]} 6. Qb3 {[%clk 0:03:00]}  Bc8 {[%clk 0:02:44]} 7. d4 {[%clk 0:02:59]}  e6 {[%clk 0:02:44]} 8. Bd3 {[%clk 0:02:58]}  Bd6 {[%clk 0:02:44]} 9. O-O {[%clk 0:02:57]}  O-O {[%clk 0:02:44]} 10. Re1 {[%clk 0:02:56]}  a6 {[%clk 0:02:41]} 11. e4 {[%clk 0:02:55]}  dxe4 {[%clk 0:02:40]} 12. Nxe4 {[%clk 0:02:55]}  Nxe4 {[%clk 0:02:38]} 13. Bxe4 {[%clk 0:02:56]}  Nd7 {[%clk 0:02:38]} 14. Ng5 {[%clk 0:02:45]}  Nf6 {[%clk 0:02:21]} 15. Bc2 {[%clk 0:02:33]}  Qa5 {[%clk 0:02:04]} 16. Be3 {[%clk 0:02:19]}  Bd7 {[%clk 0:01:54]} 17. Qd3 {[%clk 0:02:09]}  g6 {[%clk 0:01:49]} 18. Ne4 {[%clk 0:01:56]}  Nxe4 {[%clk 0:01:45]} 19. Qxe4 {[%clk 0:01:56]}  Bc6 {[%clk 0:01:45]} 20. Qh4 {[%clk 0:01:52]}  Rac8 {[%clk 0:01:33]} 21. a3 {[%clk 0:01:47]}  Bxg2 {[%clk 0:01:19]} 22. Bxg6 {[%clk 0:01:45]}  fxg6 {[%clk 0:01:17]} 23. Kxg2 {[%clk 0:01:44]}  Qd5+ {[%clk 0:01:18]} 24. Kg1 {[%clk 0:01:40]}  Rc2 {[%clk 0:01:17]} 25. b4 {[%clk 0:00:48]}  Rf5 {[%clk 0:00:40]} 26. Qd8+ {[%clk 0:00:42]}  Rf8 {[%clk 0:00:40]} 27. Qh4 {[%clk 0:00:42]}  b5 {[%clk 0:00:37]} 28. Rac1 {[%clk 0:00:28]}  Ra2 {[%clk 0:00:26]} 29. Qg4 {[%clk 0:00:27]}  Rf5 {[%clk 0:00:20]} 30. Rc8+ {[%clk 0:00:20]}  Bf8 {[%clk 0:00:13]} 31. Rec1 {[%clk 0:00:13]}  Raxf2 {[%clk 0:00:13]} 32. Bxf2 {[%clk 0:00:10]}  Rg5 {[%clk 0:00:14]} 33. Qxg5 {[%clk 0:00:07]}  Qxg5+ {[%clk 0:00:15]} 34. Kf1 {[%clk 0:00:07]}  Qf4 {[%clk 0:00:11]} 35. Kg2 {[%clk 0:00:07]}  Qe4+ {[%clk 0:00:11]} 36. Kg1 {[%clk 0:00:07]}  Qg4+ {[%clk 0:00:10]} 37. Kf1 {[%clk 0:00:08]}  Qf4 {[%clk 0:00:10]} 38. Kg1 {[%clk 0:00:08]}  Kg7 {[%clk 0:00:10]} 39. R1c7+ {[%clk 0:00:06]}  Kh6 {[%clk 0:00:10]} 40. Rc3 {[%clk 0:00:06]}  Bd6 {[%clk 0:00:10]} 41. Be3 {[%clk 0:00:06]}  Kg5 {[%clk 0:00:06]} 42. Bxf4+ {[%clk 0:00:06]}  Kxf4 {[%clk 0:00:06]} 43. R8c6 {[%clk 0:00:06]}  Ke4 {[%clk 0:00:07]} 44. Rxd6 {[%clk 0:00:06]} 1-0


[Site "https://www.chess.com"]

[Event "Titled Tuesday Blitz January 10 Early 2023"]
[White "Langner, Ladislav"]
[Black "Adam, Ernestina"]
[WhiteFideId "300403"]
[BlackFideId "165883"]
[WhiteElo "2368"]
[BlackElo "2040"]
[Result "1-0"]
[Round "11"]
[TimeControl "180+2"]
[Date "2023.01.10"]
[WhiteClock "0:00:43"]
[BlackClock "0:01:57"]

1. e4 {[%clk 0:03:00]}  c6 {[%clk 0:03:00]} 2. d4 {[%clk 0:03:00]}  d5 {[%clk 0:03:01]} 3. e5 {[%clk 0:03:01]}  Bf5 {[%clk 0:03:00]} 4. Nd2 {[%clk 0:03:02]}  e6 {[%clk 0:02:59]} 5. Nb3 {[%clk 0:03:02]}  Ne7 {[%clk 0:02:57]} 6. Nf3 {[%clk 0:03:03]}  Bg6 {[%clk 0:02:56]} 7. Be2 {[%clk 0:03:01]}  Nf5 {[%clk 0:02:57]} 8. O-O {[%clk 0:02:59]}  Be7 {[%clk 0:02:57]} 9. c3 {[%clk 0:02:49]}  O-O {[%clk 0:02:57]} 10. Ne1 {[%clk 0:02:44]}  Nd7 {[%clk 0:02:57]} 11. Nd3 {[%clk 0:02:44]}  c5 {[%clk 0:02:57]} 12. Nbxc5 {[%clk 0:02:38]}  Nxc5 {[%clk 0:02:57]} 13. dxc5 {[%clk 0:02:35]}  Qc7 {[%clk 0:02:54]} 14. b4 {[%clk 0:02:33]}  a5 {[%clk 0:02:54]} 15. g4 {[%clk 0:02:20]}  Nh4 {[%clk 0:02:52]} 16. Be3 {[%clk 0:02:20]}  Bxd3 {[%clk 0:02:45]} 17. Qxd3 {[%clk 0:02:20]}  Qxe5 {[%clk 0:02:44]} 18. f4 {[%clk 0:02:13]}  Qe4 {[%clk 0:02:40]} 19. Qxe4 {[%clk 0:02:10]}  dxe4 {[%clk 0:02:41]} 20. Rfd1 {[%clk 0:02:08]}  Rfd8 {[%clk 0:02:40]} 21. Rxd8+ {[%clk 0:01:57]}  Rxd8 {[%clk 0:02:41]} 22. Rd1 {[%clk 0:01:56]}  Rxd1+ {[%clk 0:02:34]} 23. Bxd1 {[%clk 0:01:56]}  axb4 {[%clk 0:02:34]} 24. cxb4 {[%clk 0:01:55]}  Ng6 {[%clk 0:02:32]} 25. Bc2 {[%clk 0:01:44]}  f5 {[%clk 0:02:28]} 26. Bb3 {[%clk 0:01:44]}  Kf8 {[%clk 0:02:24]} 27. Bxe6 {[%clk 0:01:43]}  fxg4 {[%clk 0:02:24]} 28. Bd5 {[%clk 0:01:41]}  Bf6 {[%clk 0:02:20]} 29. Bxb7 {[%clk 0:01:39]}  Ne7 {[%clk 0:02:20]} 30. a4 {[%clk 0:01:28]}  Ke8 {[%clk 0:02:21]} 31. a5 {[%clk 0:01:26]}  Kd7 {[%clk 0:02:20]} 32. Bxe4 {[%clk 0:01:21]}  Kc7 {[%clk 0:02:18]} 33. a6 {[%clk 0:01:16]}  Kb8 {[%clk 0:02:17]} 34. c6 {[%clk 0:01:13]}  Nc8 {[%clk 0:02:14]} 35. b5 {[%clk 0:01:08]}  Bd8 {[%clk 0:02:12]} 36. Bxh7 {[%clk 0:01:05]}  Bc7 {[%clk 0:02:02]} 37. Bf5 {[%clk 0:00:51]}  Nd6 {[%clk 0:01:59]} 38. a7+ {[%clk 0:00:48]}  Ka8 {[%clk 0:01:59]} 39. Bd3 {[%clk 0:00:44]}  Nc8 {[%clk 0:01:57]} 40. Kg2 {[%clk 0:00:43]} 1-0


[Site "https://www.chess.com"]

[Event "Titled Tuesday Blitz January 10 Early 2023"]
[White "Baches Garcia, Guillermo"]
[Black "Rosenberg, Evan S"]
[WhiteFideId "2209764"]
[BlackFideId "2019299"]
[WhiteElo "2327"]
[BlackElo "1956"]
[Result "0-1"]
[Round "11"]
[TimeControl "180+2"]
[Date "2023.01.10"]
[WhiteClock "0:00:05"]
[BlackClock "0:00:03"]

1. e4 {[%clk 0:03:00]}  e5 {[%clk 0:02:59]} 2. Nf3 {[%clk 0:03:01]}  Nc6 {[%clk 0:03:00]} 3. Nc3 {[%clk 0:03:01]}  Nf6 {[%clk 0:03:00]} 4. d4 {[%clk 0:03:01]}  exd4 {[%clk 0:03:00]} 5. Nxd4 {[%clk 0:03:02]}  Bb4 {[%clk 0:03:00]} 6. Nxc6 {[%clk 0:03:02]}  bxc6 {[%clk 0:03:00]} 7. Bd3 {[%clk 0:03:03]}  d5 {[%clk 0:03:01]} 8. Bd2 {[%clk 0:03:03]}  O-O {[%clk 0:02:59]} 9. O-O {[%clk 0:03:03]}  Bg4 {[%clk 0:02:53]} 10. Qc1 {[%clk 0:03:03]}  Bd6 {[%clk 0:02:21]} 11. Bf4 {[%clk 0:02:54]}  Re8 {[%clk 0:02:15]} 12. Re1 {[%clk 0:02:47]}  Nh5 {[%clk 0:02:05]} 13. e5 {[%clk 0:02:27]}  Bb4 {[%clk 0:01:53]} 14. a3 {[%clk 0:02:19]}  Bc5 {[%clk 0:01:36]} 15. Na4 {[%clk 0:02:06]}  Bf8 {[%clk 0:00:55]} 16. Bd2 {[%clk 0:01:45]}  Rb8 {[%clk 0:00:48]} 17. h3 {[%clk 0:01:35]}  Be6 {[%clk 0:00:48]} 18. b4 {[%clk 0:01:28]}  g6 {[%clk 0:00:41]} 19. Be3 {[%clk 0:01:23]}  a5 {[%clk 0:00:39]} 20. Nc5 {[%clk 0:01:19]}  axb4 {[%clk 0:00:36]} 21. axb4 {[%clk 0:01:20]}  Rxb4 {[%clk 0:00:36]} 22. Bg5 {[%clk 0:01:14]}  Be7 {[%clk 0:00:31]} 23. Nxe6 {[%clk 0:01:13]}  fxe6 {[%clk 0:00:31]} 24. Bd2 {[%clk 0:01:13]}  Rb8 {[%clk 0:00:27]} 25. c4 {[%clk 0:01:07]}  Rf8 {[%clk 0:00:20]} 26. cxd5 {[%clk 0:01:05]}  cxd5 {[%clk 0:00:20]} 27. Bh6 {[%clk 0:00:59]}  c5 {[%clk 0:00:18]} 28. Bxf8 {[%clk 0:00:56]}  Qxf8 {[%clk 0:00:17]} 29. Ra7 {[%clk 0:00:51]}  c4 {[%clk 0:00:17]} 30. Bf1 {[%clk 0:00:50]}  Bc5 {[%clk 0:00:17]} 31. Ra2 {[%clk 0:00:47]}  Qf7 {[%clk 0:00:11]} 32. Qd2 {[%clk 0:00:22]}  Rf8 {[%clk 0:00:11]} 33. Rea1 {[%clk 0:00:17]}  Ng3 {[%clk 0:00:10]} 34. Ra8 {[%clk 0:00:15]}  Ne4 {[%clk 0:00:10]} 35. Rxf8+ {[%clk 0:00:14]}  Qxf8 {[%clk 0:00:09]} 36. Qa2 {[%clk 0:00:12]}  Nxf2 {[%clk 0:00:07]} 37. Qa8 {[%clk 0:00:11]}  Nxh3+ {[%clk 0:00:07]} 38. Kh2 {[%clk 0:00:10]}  Ng5 {[%clk 0:00:05]} 39. Qxf8+ {[%clk 0:00:10]}  Kxf8 {[%clk 0:00:06]} 40. Ra6 {[%clk 0:00:09]}  Bd4 {[%clk 0:00:06]} 41. Rc6 {[%clk 0:00:09]}  Bxe5+ {[%clk 0:00:06]} 42. g3 {[%clk 0:00:08]}  Ke7 {[%clk 0:00:05]} 43. Kg2 {[%clk 0:00:08]}  Kd7 {[%clk 0:00:05]} 44. Ra6 {[%clk 0:00:08]}  c3 {[%clk 0:00:05]} 45. Bd3 {[%clk 0:00:08]}  Ne4 {[%clk 0:00:03]} 46. Bxe4 {[%clk 0:00:07]}  dxe4 {[%clk 0:00:03]} 47. Ra2 {[%clk 0:00:07]}  Bd4 {[%clk 0:00:02]} 48. Kf1 {[%clk 0:00:07]}  e3 {[%clk 0:00:02]} 49. Ke2 {[%clk 0:00:07]}  Kd6 {[%clk 0:00:02]} 50. Kd3 {[%clk 0:00:07]}  e5 {[%clk 0:00:02]} 51. Rh2 {[%clk 0:00:07]}  h5 {[%clk 0:00:02]} 52. Ra2 {[%clk 0:00:06]}  Ke6 {[%clk 0:00:01]} 53. Ke4 {[%clk 0:00:06]}  Kf6 {[%clk 0:00:01]} 54. Ra6+ {[%clk 0:00:05]}  Kg5 {[%clk 0:00:02]} 55. Ra2 {[%clk 0:00:06]}  Kg4 {[%clk 0:00:02]} 56. Rg2 {[%clk 0:00:06]}  c2 {[%clk 0:00:02]} 57. Rxc2 {[%clk 0:00:06]}  Kxg3 {[%clk 0:00:02]} 58. Rc6 {[%clk 0:00:05]}  g5 {[%clk 0:00:03]} 59. Rg6 {[%clk 0:00:05]}  g4 {[%clk 0:00:03]} 60. Rh6 {[%clk 0:00:05]}  h4 {[%clk 0:00:03]} 0-1


[Site "https://www.chess.com"]